bitfinex/quotes_ETHUSD_20250930
["timestamp","ask_amount","ask_price","bid_price","bid_amount"]
[1759255899797,0.001,4114.9,4114.8,13.13485177]
[1759255899980,0.6914,4114.9,4114.8,10.7046]
[1759255900189,0.6914,4114.9,4114.8,7.9136]
[1759255900501,0.001,4114.9,4114.8,13.13685177]
[1759255901255,0.001,4114.9,4114.8,6.13685177]
[1759255902160,0.001,4114.9,4114.8,7.49393079]
[1759255905380,0.001,4114.9,4114.8,6.79843079]
[1759255905982,0.001,4114.9,4114.8,7.49393079]
[1759255907879,0.001,4114.9,4114.8,7.04813079]
[1759255908209,0.001,4114.9,4114.8,6.79843079]
[1759255908792,0.001,4114.9,4114.8,6.79643079]
[1759255908993,0.001,4114.9,4114.8,7.37033079]
[1759255910309,0.001,4114.9,4114.8,14.37033079]
[1759255910810,0.001,4114.9,4114.8,16.77033079]
[1759255912608,0.001,4115.4,4115.3,3.2219565]
[1759255912914,0.001,4115.4,4115.3,6.60545499]
[1759255913082,0.001,4115.4,4115.3,7.27665543]
[1759255913984,0.001,4115.4,4115.3,9.67665543]
[1759255914198,0.001,4115.4,4115.3,10.01712014]
[1759255915898,0.001,4115.4,4115.3,9.67665543]
[1759255917430,0.6964,4115.4,4115.3,2.99515543]
[1759255917721,0.6964,4115.4,4115.3,2.793]
[1759255917892,0.6964,4115.4,4115.3,5.2229565]
[1759255918105,0.6964,4115.4,4115.3,6.0149565]
[1759255918289,0.6964,4115.4,4115.3,5.2229565]
[1759255918817,0.6964,4115.4,4115.3,6.0149565]
[1759255920645,2.42867913,4117.5,4116.5,0.792]
[1759255920797,0.1216,4117.2,4116.7,0.792]
[1759255920995,0.1216,4117.2,4116.8,2.798]
[1759255921224,0.6954,4117.1,4116.9,0.792]
[1759255921405,0.1216,4117.5,4117.1,0.792]
[1759255921607,0.1216,4117.5,4117.2,2.798]
[1759255921791,2.55026629,4117.5,4117.2,2.798]
[1759255921996,0.6954,4117.4,4117.2,2.798]
[1759255922196,2.55026629,4117.5,4117.2,2.798]
[1759255922197,0.4604,4117.3,4117.2,2.798]
[1759255922397,0.4604,4117.3,4117.2,3.59]
[1759255922825,0.4604,4117.8,4117.3,0.792]
[1759255923023,0.4604,4117.7,4117.5,0.792]
[1759255923225,0.1216,4117.9,4117.7,0.792]
[1759255923411,2.55002225,4117.9,4117.8,2.798]
[1759255923731,2.42867229,4117.5,4117.2,7.1216]
[1759255923932,2.42867229,4117.5,4117.4,0.792]
[1759255923933,0.1216,4117.5,4117.4,0.792]
[1759255924227,0.3566,4117.5,4117.4,0.792]
[1759255924433,3.24565816,4117.5,4117.4,0.792]
[1759255924595,0.817,4117.5,4117.2,7.0]
[1759255924802,0.6954,4117.4,4117.2,9.799]
[1759255925019,0.6954,4117.3,4117.2,9.799]
[1759255925420,0.6954,4117.3,4117.2,10.591]
[1759255925621,0.235,4117.3,4117.2,10.591]
[1759255926103,0.235,4117.3,4117.2,13.01983513]
[1759255927330,0.4604,4117.6,4117.3,3.22073194]
[1759255927537,0.1216,4118.0,4117.5,0.792]
[1759255927710,0.1216,4118.0,4117.7,0.792]
[1759255927909,0.1216,4118.0,4117.9,0.792]
[1759255928110,0.1216,4118.0,4117.9,3.591]
[1759255928435,0.3566,4118.0,4117.9,3.591]
[1759255928621,0.817,4118.0,4117.9,3.591]
[1759255928821,0.817,4118.0,4117.9,6.01942225]
[1759255929336,0.1216,4118.0,4117.9,3.591]
[1759255929535,0.817,4118.0,4117.9,3.591]
[1759255929905,0.817,4118.0,4117.9,10.591]
[1759255930537,0.817,4118.0,4117.9,3.591]
[1759255931715,0.817,4118.0,4117.9,2.797]
[1759255933943,3.24536328,4118.0,4117.9,3.589]
[1759255934145,0.817,4118.0,4117.9,3.589]
[1759255935048,8.03745637,4118.4,4118.0,0.792]
[1759255935049,0.2404,4118.4,4118.0,0.792]
[1759255935242,0.4579,4118.6,4118.2,0.792]
[1759255935444,0.4579,4118.6,4118.4,0.792]
[1759255935445,0.6983,4118.6,4118.4,0.792]
[1759255935632,0.2404,4118.6,4118.5,3.587]
[1759255935837,0.6983,4118.6,4118.5,3.587]
[1759255936035,0.2404,4119.0,4118.5,3.587]
[1759255936238,0.6983,4118.9,4118.6,0.792]
[1759255936558,0.6983,4118.8,4118.7,2.795]
[1759255937055,0.2404,4118.8,4118.7,3.587]
[1759255937925,0.7056,4118.8,4118.7,3.587]
[1759255938268,2.4,4119.5,4118.7,3.587]
[1759255938269,2.4275915,4119.4,4118.8,0.792]
[1759255938571,2.42772239,4119.1,4119.0,0.792]
[1759255938853,3.14012239,4119.1,4119.0,0.792]
[1759255939025,2.42777373,4119.0,4118.9,2.794]
[1759255939226,0.7124,4119.0,4118.9,2.794]
[1759255939537,2.4,4119.9,4118.9,3.586]
[1759255939738,0.2472,4119.8,4119.0,0.792]
[1759255939927,4.82740673,4119.7,4119.2,0.792]
[1759255940258,4.82740673,4119.7,4119.4,0.792]
[1759255940259,0.2472,4119.6,4119.4,0.792]
[1759255940454,0.2472,4119.6,4119.5,3.59]
[1759255940654,2.4,4119.8,4119.6,0.792]
[1759255940964,2.42725144,4119.9,4119.7,2.798]
[1759255941260,4.82683104,4120.6,4119.8,0.792]
[1759255941261,0.52175989,4120.6,4119.8,0.792]
[1759255941464,0.52175989,4120.6,4119.1,0.48481374]
[1759255941465,0.2472,4120.5,4119.9,2.798]
[1759255941782,0.4652,4120.7,4120.0,0.792]
[1759255942066,0.23430792,4121.4,4120.2,0.792]
[1759255942067,0.2472,4121.0,4120.2,0.792]
[1759255942226,2.42668001,4120.9,4120.4,0.792]
[1759255942425,3.1391191,4120.8,4120.6,0.792]
[1759255942629,3.13917215,4120.7,4120.6,0.792]
[1759255942825,3.1124,4120.7,4120.6,0.792]
[1759255943125,2.6472,4120.7,4120.5,2.807]
[1759255943340,2.42689845,4120.5,4120.0,0.792]
[1759255943659,2.42689845,4120.5,4119.9,0.2292]
[1759255943660,2.42700774,4120.3,4120.2,0.792]
[1759255943842,2.42700774,4120.3,4120.2,3.599]
[1759255944028,3.13940774,4120.3,4120.2,3.599]
[1759255944229,2.42718488,4120.0,4119.6,0.792]
[1759255944431,2.42736395,4119.7,4119.1,0.48481374]
[1759255944641,2.67456395,4119.7,4119.2,2.807]
[1759255944848,2.67456395,4119.7,4118.6,2.42800049]
[1759255944849,2.42750045,4119.5,4119.3,2.807]
[1759255945048,2.42750045,4119.5,4118.6,0.4535]
[1759255945049,2.67439307,4120.0,4119.5,0.792]
[1759255945264,2.4,4120.1,4119.6,4.0525]
[1759255945475,2.42716957,4120.1,4119.8,0.792]
[1759255945632,2.89232555,4120.1,4120.0,0.792]
[1759255945965,2.89232555,4120.1,4119.9,2.807]
[1759255945966,2.89232555,4120.1,4119.9,2.808]
[1759255946149,2.89238446,4120.0,4119.9,3.6]
[1759255946353,0.7124,4120.0,4119.9,3.6]
[1759255946663,0.1216,4120.2,4119.9,3.6]
[1759255947464,2.42712899,4120.1,4119.9,3.6]
[1759255947759,0.1216,4120.2,4119.9,3.6]
[1759255948241,0.1216,4120.2,4119.9,3.8292]
[1759255948438,0.1216,4120.2,4120.0,0.792]
[1759255948662,0.1216,4120.2,4120.0,1.4747]
[1759255948832,0.1216,4120.2,4120.1,1.0212]
[1759255949035,2.42683182,4120.6,4120.2,0.792]
[1759255949235,2.54848994,4120.5,4120.4,0.792]
[1759255949952,0.3688,4120.5,4120.4,0.792]
[1759255950150,0.1216,4120.5,4120.4,0.792]
[1759255950360,2.4,4121.1,4120.4,0.792]
[1759255950361,0.1216,4120.8,4120.4,0.792]
[1759255950561,0.1216,4120.8,4120.4,1.0212]
[1759255950846,2.7955234,4120.8,4120.6,0.792]
[1759255951051,2.42677215,4120.7,4120.6,0.792]
[1759255951275,0.3688,4120.8,4120.6,0.792]
[1759255951579,2.42677215,4120.7,4120.6,0.792]
[1759255951972,0.2472,4120.7,4120.6,0.792]
[1759255952777,0.1216,4120.8,4120.6,0.792]
[1759255952984,0.1216,4120.8,4120.7,3.599]
[1759255953150,0.1216,4121.0,4120.8,0.792]
[1759255953348,0.1216,4121.0,4120.3,0.1216]
[1759255953349,2.67385437,4120.9,4120.4,0.792]
[1759255953690,2.42675776,4120.8,4120.6,0.792]
[1759255954391,2.67386938,4120.9,4120.6,0.792]
[1759255954565,0.2472,4120.9,4120.6,0.792]
[1759255954760,0.7124,4120.8,4120.7,2.806]
[1759255954964,0.2472,4120.8,4120.7,3.598]
[1759255955360,2.54821145,4121.0,4120.8,0.792]
[1759255955572,0.3688,4121.0,4120.9,2.805]
[1759255955959,0.1216,4121.0,4120.9,3.597]
[1759255956571,0.1216,4121.0,4120.9,2.805]
[1759255957300,2.54819548,4121.0,4120.9,2.805]
[1759255957504,0.1216,4121.0,4120.9,2.805]
[1759255957705,2.54819548,4121.0,4120.9,2.805]
[1759255957865,0.1216,4121.0,4120.9,2.805]
[1759255958062,2.54819548,4121.0,4120.9,2.805]
[1759255958371,0.1216,4121.0,4120.9,2.805]
[1759255958567,2.79539548,4121.0,4120.9,2.805]
[1759255959296,0.3688,4121.0,4120.9,2.805]
[1759255959479,2.79539548,4121.0,4120.9,2.805]
[1759255960295,0.3688,4121.0,4120.9,2.805]
[1759255960466,2.79539548,4121.0,4120.9,2.805]
[1759255960792,2.79539548,4121.0,4120.3,2.77778622]
[1759255960793,2.42665437,4120.9,4120.4,0.792]
[1759255960995,2.42665437,4120.9,4120.5,2.802]
[1759255961371,2.65945437,4120.9,4120.5,2.802]
[1759255961771,2.42665437,4120.9,4120.5,2.802]
[1759255961965,2.42671609,4120.8,4120.5,2.802]
[1759255962314,2.42671609,4120.8,4120.4,1.28564767]
[1759255962315,2.42677215,4120.7,4120.6,2.801]
[1759255962614,2.42677215,4120.7,4119.7,0.4447]
[1759255962615,0.6947,4120.7,4120.5,2.802]
[1759255962771,2.4265726,4121.1,4120.6,2.802]
[1759255963166,2.54837215,4120.7,4120.6,2.802]
[1759255963367,0.8163,4120.7,4119.8,0.59632288]
[1759255963573,2.4271148,4120.2,4119.9,2.802]
[1759255964298,2.42715404,4120.1,4119.9,2.802]
[1759255964484,2.65987096,4120.2,4119.9,2.802]
[1759255964692,2.42707096,4120.2,4119.9,0.792]
[1759255964897,2.42707096,4120.2,4120.0,2.801]
[1759255965271,2.42702852,4120.3,4120.0,2.801]
[1759255965495,2.42706833,4120.2,4120.0,2.801]
[1759255965905,2.42712555,4120.1,4120.0,2.801]
[1759255967618,3.12182555,4120.1,4120.0,2.801]
[1759255967904,3.24342555,4120.1,4120.0,2.801]
[1759255968072,0.3544,4120.1,4119.4,0.1216]
[1759255968272,0.1216,4119.7,4119.5,2.799]
[1759255968473,3.12212013,4119.6,4119.5,2.799]
[1759255969506,3.12212013,4119.6,4119.5,2.8]
[1759255970205,3.12212013,4119.6,4118.7,0.1216]
[1759255970393,0.1216,4119.3,4118.8,3.591]
[1759255970699,2.42777373,4119.0,4118.9,1.024]
[1759255970906,2.42777373,4119.0,4118.9,0.792]
[1759255971106,2.42786054,4118.9,4118.8,0.792]
[1759255971309,2.42789161,4118.8,4118.4,0.792]
[1759255971527,0.5835,4119.3,4118.6,0.792]
[1759255971528,2.42772028,4119.1,4118.6,0.792]
[1759255971681,2.66057373,4119.0,4118.7,2.799]
[1759255971886,2.66057783,4119.0,4118.5,0.1216]
[1759255972135,2.7822376,4118.9,4118.6,2.799]
[1759255972283,0.6947,4118.8,4117.9,0.232]
[1759255972486,2.42830431,4118.1,4118.0,0.1216]
[1759255972687,2.42826404,4118.2,4118.0,2.799]
[1759255972886,0.3544,4118.5,4118.0,3.4757]
[1759255973114,2.42823866,4118.3,4118.0,3.4757]
[1759255973314,2.42830431,4118.1,4118.0,0.48367949]
[1759255973523,0.3544,4118.5,4118.0,3.28267949]
[1759255973698,2.42812742,4118.4,4118.0,2.799]
[1759255974023,2.4282522,4118.2,4118.0,2.799]
[1759255974220,2.42830431,4118.1,4118.0,2.799]
[1759255974599,2.42831578,4118.1,4118.0,2.798]
[1759255975022,2.42818638,4118.3,4118.0,2.798]
[1759255975229,2.42818638,4118.3,4118.1,0.6767]
[1759255975714,2.42824534,4118.2,4118.1,0.232]
[1759255976013,2.42830431,4118.1,4118.0,2.798]
[1759255976221,0.2328,4118.3,4117.8,0.1216]
[1759255976435,0.2328,4118.3,4117.9,2.798]
[1759255976436,2.42836328,4118.0,4117.9,2.798]
[1759255976736,2.42862289,4117.6,4117.3,0.1236]
[1759255976929,2.4285402,4117.7,4117.4,2.798]
[1759255977130,2.42863959,4117.6,4117.4,2.798]
[1759255977318,2.42865816,4117.5,4117.4,3.59]
[1759255977513,2.42865816,4117.5,4117.3,0.1236]
[1759255977730,2.42865816,4117.5,4117.4,2.798]
[1759255978111,2.42866651,4117.5,4117.3,0.002]
[1759255978335,3.12335816,4117.5,4117.4,2.798]
[1759255978635,2.66145816,4117.5,4117.4,2.798]
[1759255979128,3.12335816,4117.5,4117.4,2.798]
[1759255979323,2.66145816,4117.5,4117.4,2.798]
[1759255979523,2.42865816,4117.5,4117.4,2.798]
[1759255980238,0.2328,4117.5,4117.4,2.798]
[1759255980435,0.1216,4117.7,4117.4,2.798]
[1759255980436,0.1216,4117.7,4117.5,0.792]
[1759255980637,2.42825093,4118.2,4117.6,0.02428599]
[1759255980936,2.42825093,4118.2,4117.5,1.4687]
[1759255980937,0.1216,4118.5,4118.1,0.792]
[1759255981120,0.001,4118.6,4118.2,3.49798245]
[1759255981317,0.001,4118.6,4118.4,0.792]
[1759255981517,0.001,4118.6,4118.5,0.02428068]
[1759255981721,0.001,4118.6,4118.5,0.6767]
[1759255981938,0.001,4118.6,4118.4,0.1216]
[1759255982153,0.001,4118.6,4118.5,3.59]
[1759255982360,0.001,4118.6,4118.5,5.05092847]
[1759255982556,0.001,4118.6,4118.5,5.17252847]
[1759255983041,0.001,4118.6,4118.5,2.74446]
[1759255983739,0.001,4118.6,4118.5,4.08276]
[1759255983964,0.001,4118.6,4118.5,4.75946]
[1759255984851,0.001,4118.6,4118.5,4.31476]
[1759255985168,0.001,4118.6,4118.5,4.3883]
[1759255985560,0.001,4118.6,4118.5,4.41258068]
[1759255986152,0.001,4118.6,4118.5,3.9436]
[1759255986342,0.001,4118.6,4118.5,3.7116]
[1759255987552,0.2338,4118.6,4118.5,3.7116]
[1759255988143,0.001,4118.6,4118.5,3.7116]
[1759255988753,0.001,4118.6,4118.5,3.587]
[1759255989143,0.6957,4118.6,4118.5,3.587]
[1759255989348,2.66180951,4118.6,4118.5,3.587]
[1759255989674,0.2338,4118.6,4117.6,1.024]
[1759255989843,0.6957,4118.6,4117.9,0.1216]
[1759255990042,0.001,4118.6,4118.1,3.22026285]
[1759255990244,0.001,4118.6,4118.4,0.792]
[1759255990443,0.001,4118.6,4118.5,3.588]
[1759255990668,0.001,4118.6,4118.5,3.587]
[1759255992172,0.6821,4118.6,4117.9,0.1216]
[1759255992475,0.1216,4118.4,4118.0,1.935]
[1759255992657,0.2373,4118.3,4118.0,1.935]
[1759255993173,0.1216,4118.4,4118.0,1.935]
[1759255993644,0.1216,4118.4,4118.0,4.3633601]
[1759255993851,0.1216,4118.4,4118.2,0.792]
[1759255994077,0.1216,4118.4,4118.3,3.587]
[1759255995179,0.1216,4118.4,4118.3,3.586]
[1759255996580,0.6811,4118.4,4117.4,0.792]
[1759255996750,0.6811,4118.4,4117.7,3.22053369]
[1759255996945,3.10927359,4118.4,4117.7,3.22053369]
[1759255997151,2.428195,4118.3,4117.7,3.22053369]
[1759255997478,0.001,4118.6,4118.1,0.792]
[1759255997678,0.001,4118.6,4117.8,3.51418481]
[1759255997679,0.001,4118.6,4118.3,0.792]
[1759255998083,0.001,4118.6,4118.3,1.0304]
[1759255998582,2.42901218,4118.6,4118.3,0.792]
[1759255998748,2.42812049,4118.5,4118.3,0.792]
[1759255998950,2.66082038,4118.6,4118.3,0.792]
[1759255999584,0.2328,4118.6,4118.3,0.792]
[1759255999785,2.66083382,4118.6,4118.3,0.792]
[1759256000286,0.001,4118.6,4118.3,0.792]
[1759256000474,2.42901449,4118.6,4118.3,0.792]
[1759256000673,0.001,4118.6,4118.3,0.792]
[1759256001993,0.001,4118.6,4118.3,3.60248565]
[1759256002291,0.001,4118.6,4118.5,3.22006847]
[1759256002461,0.001,4118.6,4118.5,6.01506847]
[1759256002784,0.001,4118.6,4118.5,6.71196847]
[1759256002969,0.001,4118.6,4118.5,3.91696847]
[1759256003165,0.001,4118.6,4118.5,7.38671388]
[1759256005387,0.001,4118.6,4118.5,4.58971388]
[1759256005592,0.001,4118.6,4118.5,7.38571388]
[1759256006630,0.001,4118.6,4118.5,7.50731388]
[1759256007720,0.001,4118.6,4118.5,7.50531388]
[1759256008795,0.001,4118.6,4118.5,4.47291388]
[1759256009011,0.001,4118.6,4118.5,6.80741388]
[1759256009907,0.001,4118.6,4118.5,6.80841388]
[1759256010216,0.001,4118.6,4118.5,7.04681388]
[1759256010719,0.001,4118.6,4118.5,0.9136]
[1759256010932,0.6721,4118.6,4118.2,2.42820368]
[1759256011083,0.001,4118.6,4118.5,2.42806847]
[1759256011285,0.001,4118.6,4118.5,6.70996847]
[1759256011519,0.001,4118.6,4118.5,4.49881533]
[1759256011703,0.001,4118.6,4118.5,6.01306847]
[1759256011898,0.001,4118.6,4118.5,6.25146847]
[1759256012515,0.001,4118.6,4118.5,6.70996847]
[1759256012712,0.001,4118.6,4118.5,4.2819]
[1759256012914,0.001,4118.6,4118.5,6.25146847]
[1759256013114,0.001,4118.6,4118.5,6.01306847]
[1759256013426,0.001,4118.6,4118.5,0.792]
[1759256013716,0.6721,4118.6,4118.5,2.801]
[1759256014202,0.6721,4118.6,4118.5,3.593]
[1759256014404,0.6721,4118.6,4118.5,2.801]
[1759256014713,0.6721,4118.6,4118.5,3.593]
[1759256016515,0.2328,4118.6,4118.5,3.593]
[1759256017003,2.66080951,4118.6,4118.5,3.593]
[1759256017204,3.10010951,4118.6,4118.5,3.593]
[1759256017722,3.10010951,4118.6,4118.5,0.792]
[1759256017899,3.10010951,4118.6,4118.5,3.591]
[1759256020305,3.10010951,4118.6,4118.5,0.792]
[1759256020489,3.10012635,4118.6,4118.5,2.798]
[1759256020691,2.42902635,4118.6,4118.5,2.798]
[1759256021188,3.25562635,4118.6,4118.5,2.798]
[1759256021743,5.65562635,4118.6,4118.5,2.798]
[1759256022628,2.42812742,4118.4,4118.3,2.798]
[1759256022841,0.2465,4118.4,4118.3,2.798]
[1759256023149,2.79622742,4118.4,4118.3,2.798]
[1759256023314,2.54972742,4118.4,4118.3,2.798]
[1759256023515,2.79622742,4118.4,4118.3,2.798]
[1759256023915,3.25472742,4118.4,4118.3,2.798]
[1759256024115,2.79622742,4118.4,4118.3,2.798]
[1759256024443,3.25472742,4118.4,4118.3,2.798]
[1759256026430,2.42834732,4118.1,4117.6,0.792]
[1759256026634,0.1216,4118.0,4117.8,0.792]
[1759256028128,0.3681,4118.0,4117.8,0.792]
[1759256028537,0.1216,4118.0,4117.9,3.588]
[1759256029747,0.1216,4118.2,4118.0,0.792]
[1759256030160,2.401,4118.6,4118.2,0.792]
[1759256030467,0.1226,4118.6,4118.4,0.792]
[1759256030746,0.1226,4118.6,4118.5,1.5072]
[1759256031321,0.1226,4118.6,4118.5,3.93526847]
[1759256031550,0.001,4118.6,4118.5,3.93526847]
[1759256031750,0.001,4118.6,4118.5,4.99689421]
[1759256031929,0.001,4118.6,4118.5,4.97261353]
[1759256033753,0.001,4118.6,4118.5,7.76761353]
[1759256035357,0.001,4118.6,4118.5,10.16761353]
[1759256036856,0.001,4118.6,4118.5,10.52240621]
[1759256039391,0.001,4118.6,4118.5,10.04601353]
[1759256040579,0.001,4118.6,4118.5,7.25101353]
[1759256040888,0.001,4118.6,4118.5,10.04901353]
[1759256043395,0.001,4118.6,4118.5,10.04701353]
[1759256044078,0.001,4118.6,4118.5,7.25101353]
[1759256044285,0.001,4118.6,4118.5,9.33181353]
[1759256044682,0.001,4118.6,4118.5,9.57571353]
[1759256045184,0.001,4118.6,4118.5,10.04701353]
[1759256045388,0.001,4118.6,4118.5,6.53581353]
[1759256045587,0.001,4118.6,4118.5,9.33181353]
[1759256045766,0.001,4118.6,4118.5,5.62006847]
[1759256045972,0.001,4118.6,4118.5,8.41606847]
[1759256046968,0.001,4118.6,4118.5,9.13126847]
[1759256047279,0.001,4118.6,4118.5,8.65996847]
[1759256047675,0.001,4118.6,4118.5,8.41606847]
[1759256047886,0.001,4118.6,4118.5,9.57201353]
[1759256048565,0.001,4118.6,4118.5,9.81591353]
[1759256048977,0.001,4118.6,4118.5,9.57201353]
[1759256049377,0.001,4118.6,4118.5,9.69361353]
[1759256050488,0.001,4118.6,4118.5,9.93751353]
[1759256050669,0.001,4118.6,4118.5,10.40881353]
[1759256051290,0.001,4118.6,4118.5,9.93751353]
[1759256051491,0.001,4118.6,4118.5,9.69361353]
[1759256052194,0.001,4118.6,4118.5,6.89761353]
[1759256052395,0.2377,4118.6,4118.5,8.53466847]
[1759256053072,0.2377,4118.6,4118.5,15.53466847]
[1759256053671,0.001,4118.6,4118.5,15.53466847]
[1759256054402,0.001,4118.6,4118.5,21.13889322]
[1759256054894,0.6757,4118.6,4118.5,12.74166847]
[1759256055098,0.6757,4118.6,4118.5,15.53366847]
[1759256057300,0.6757,4118.6,4118.5,13.13266847]
[1759256058101,0.2262,4118.6,4118.5,13.13266847]
[1759256058505,0.6953,4118.6,4118.5,13.13266847]
[1759256059007,0.001,4118.6,4118.5,13.13266847]
[1759256059901,0.2262,4118.6,4118.5,13.13266847]
[1759256060093,0.2262,4118.6,4118.5,13.13166847]
[1759256061882,0.001,4118.6,4118.5,13.13166847]
[1759256062084,0.001,4118.6,4118.5,21.87599155]
[1759256064239,0.001,4118.6,4118.5,21.62769155]
[1759256064393,0.001,4118.6,4118.5,21.87599155]
[1759256065287,0.001,4118.6,4118.5,24.63078423]
[1759256066609,0.001,4118.6,4118.5,24.27599155]
[1759256067408,0.001,4118.6,4118.5,21.48599155]
[1759256067606,0.001,4118.6,4118.5,24.27499155]
[1759256070856,0.001,4118.6,4118.5,24.62978423]
[1759256074321,0.001,4119.1,4119.0,5.61977373]
[1759256074522,0.001,4119.1,4119.0,15.81857757]
[1759256074730,0.001,4119.1,4119.0,16.52147757]
[1759256076331,0.001,4119.1,4119.0,8.41953581]
[1759256076332,0.6953,4119.1,4119.0,8.41953581]
[1759256076533,0.6953,4119.1,4119.0,9.21153581]
[1759256077037,0.2262,4119.1,4119.0,9.21153581]
[1759256077235,0.001,4119.1,4119.0,9.21153581]
[1759256078057,0.001,4119.1,4119.0,9.45983581]
[1759256078224,0.001,4119.1,4119.0,9.21153581]
[1759256080955,0.001,4119.1,4119.0,6.42453581]
[1759256081168,0.2464,4119.1,4119.0,9.21253581]
[1759256081343,0.6857,4119.1,4119.0,9.21253581]
[1759256082386,0.2464,4119.1,4119.0,9.21153581]
[1759256086256,0.2464,4119.1,4119.0,9.33313581]
[1759256086581,0.001,4119.1,4119.0,9.33313581]
[1759256086784,0.001,4119.1,4119.0,16.33313581]
[1759256088383,0.001,4119.1,4119.0,16.58243581]
[1759256089295,0.001,4119.1,4119.0,16.33313581]
[1759256095895,0.2464,4119.1,4119.0,16.33313581]
[1759256096397,0.1964,4119.1,4119.0,16.33313581]
[1759256096642,0.001,4119.5,4119.4,3.21953799]
[1759256096930,0.001,4119.5,4119.4,6.12813799]
[1759256097125,0.4403,4119.5,4119.4,6.12813799]
[1759256097498,0.4403,4119.5,4119.4,6.62574408]
[1759256098106,0.4403,4119.5,4119.4,3.28460609]
[1759256098534,0.6857,4119.5,4119.4,4.07660609]
[1759256098703,0.6857,4119.5,4119.4,3.579]
[1759256099646,0.6857,4119.5,4119.4,0.792]
[1759256099947,0.6857,4119.5,4119.4,3.579]
[1759256100727,0.6857,4119.5,4119.4,6.00653799]
[1759256101512,0.001,4119.5,4119.4,7.32187488]
[1759256101720,0.001,4119.5,4119.4,8.47982256]
[1759256102555,0.001,4119.5,4119.4,10.87982256]
[1759256102864,0.001,4119.5,4119.4,10.45012256]
[1759256103425,0.001,4119.5,4119.4,7.41382256]
[1759256103631,0.001,4119.5,4119.4,10.20082256]
[1759256103934,0.6857,4119.5,4119.4,5.81508567]
[1759256104307,0.6857,4119.5,4119.4,3.02808567]
[1759256104547,0.6857,4119.5,4119.4,5.81508567]
[1759256104854,0.6857,4119.5,4119.4,4.17954768]
[1759256105013,0.6857,4119.5,4119.4,0.47894768]
[1759256105351,0.6857,4119.5,4119.4,5.21453799]
[1759256105523,0.6857,4119.5,4119.4,2.787]
[1759256105719,0.6857,4119.5,4119.1,7.0]
[1759256105914,0.6847,4119.4,4119.2,2.787]
[1759256106114,0.6847,4119.3,4119.2,2.787]
[1759256106807,0.6847,4119.3,4119.2,6.00665585]
[1759256107249,0.001,4119.5,4119.4,3.21953799]
[1759256107421,0.001,4119.5,4119.4,6.00653799]
[1759256108545,0.001,4119.5,4119.4,6.23195172]
[1759256108945,0.6857,4119.5,4119.4,6.23195172]
[1759256109131,0.6857,4119.5,4119.4,6.72780858]
[1759256109320,0.6857,4119.5,4119.4,3.94080858]
[1759256109626,0.6857,4119.5,4119.4,6.72780858]
[1759256109823,0.6857,4119.5,4119.4,0.22541373]
[1759256110228,0.6857,4119.5,4119.2,7.0]
[1759256110537,0.6847,4119.4,4119.3,2.787]
[1759256110711,0.6847,4119.4,4119.3,3.01236992]
[1759256110910,0.6847,4119.4,4119.3,3.01237102]
[1759256111327,0.6847,4119.4,4119.2,7.0]
[1759256111328,2.42759692,4119.3,4119.2,7.0]
[1759256111525,3.09759692,4119.3,4119.2,7.22532351]
[1759256111855,3.09759692,4119.3,4119.2,9.787]
[1759256112011,3.09759692,4119.3,4119.2,7.0]
[1759256112216,3.09759692,4119.3,4119.2,9.787]
[1759256113135,0.67,4119.3,4119.2,9.787]
[1759256114454,3.09759692,4119.3,4119.2,9.787]
[1759256115250,3.09759692,4119.3,4119.2,7.0]
[1759256115496,3.09759692,4119.3,4119.2,9.787]
[1759256116901,0.001,4119.5,4119.4,3.21953799]
[1759256117108,0.001,4119.5,4119.4,6.91161971]
[1759256117260,0.001,4119.5,4119.4,18.01123035]
[1759256117448,0.001,4119.5,4119.4,11.17099591]
[1759256117795,0.001,4119.5,4119.4,10.79415321]
[1759256118153,0.001,4119.5,4119.4,10.91575321]
[1759256119091,0.001,4119.5,4119.4,8.12775321]
[1759256119573,0.001,4119.5,4119.4,10.91575321]
[1759256120771,0.001,4119.5,4119.4,8.12775321]
[1759256120975,0.001,4119.5,4119.4,10.91575321]
[1759256121188,0.001,4119.5,4119.4,7.66535321]
[1759256121361,0.001,4119.5,4119.4,10.45335321]
[1759256121560,0.001,4119.5,4119.4,10.91905321]
[1759256126531,0.001,4119.5,4119.4,10.91862513]
[1759256128323,0.001,4119.5,4119.4,11.56676051]
[1759256129413,0.001,4119.5,4119.4,18.56676051]
[1759256129628,0.001,4119.5,4119.4,18.23250114]
[1759256133258,0.1216,4121.6,4121.5,2.42629471]
[1759256133440,0.1216,4121.6,4121.5,6.00429471]
[1759256133628,0.1216,4121.6,4121.5,3.578]
[1759256133946,0.8391,4121.6,4121.5,3.578]
[1759256134946,3.26534223,4121.6,4121.5,3.578]
[1759256135145,2.42632641,4121.5,4120.8,0.792]
[1759256135345,3.14382641,4121.5,4120.9,2.786]
[1759256135646,2.54785839,4121.6,4121.5,7.0]
[1759256135849,2.54785839,4121.6,4121.5,6.2825]
[1759256136243,2.54785839,4121.6,4121.5,9.0685]
[1759256137248,0.1216,4121.6,4121.5,9.0685]
[1759256137421,0.7997,4121.6,4121.5,9.8605]